{"text_format":"3","workbook":"xlsx","n_sheets":1,"sheets":["Towels-Mops"],"not_rendered":{"defined_names":1},"read":"whole","date_system":"1900"}

{"sheet":"Towels-Mops","index":0,"n_rows":34,"n_cols":5,"rows_kept":34,"merged":[[0,1,0,4],[1,0,1,4],[2,2,2,4],[3,2,3,4],[4,1,4,4],[13,1,13,4],[24,1,24,4],[33,1,33,2]]}
[null,"Attachment A - Itemized Bidding Schedule for Solicitation 2223-58VS                "]
["The bidding schedule below is based on purchase estimates and is strictly an estimate. It is designed for evaluation purposes only and  in no way is a guarantee of future purchases. Unless otherwise indicated, rates shall reflect cost for rental, laundry service, pickup and delivery. The bidding schedule must be filled out completely and attached with bid submission, failure to do so will result in bid rejection. Enter unit prices in blue shaded area.  Totals will be calculated automatically.  Enter yellow highlighted total into page 31 VIII. Bidding Schedule / Price Business Proposal."]
[null,"Name of Offeror as identified on the cover page:"]
[null,null,"(Full legal name of business submitting the offer)"]
[null,"Weekly Pickup Service Program,  Infinity Twist Dust Mop to include handle and frame. "]
[null,"Item","Approx Weekly Usage","Unit Price","Extended Price"]
[null,"24\" Infinity Twist Dust Mop, 70% synthetic, 48% post consumer content (PCC), 0% Polyethylene Terephthalate (PET) plastic. Color- Blue.",963,0,{"$f":"+C7*D7","v":0}]
[null,"36\" Infinity Twist Dust Mop, 70% synthetic, 48% post consumer content (PCC), 0% Polyethylene Terephthalate (PET) plastic. Color- Blue.",393,0,0]
[null,"60\" Infinity Twist Dust Mop, 70% synthetic, 48% post consumer content (PCC), 0% Polyethylene Terephthalate (PET) plastic. Color- Blue.",535,0,0]
[null,"24 oz. Wet Mop - Cotton for absorption,loop-end fiber with woven tail band, launderable, useable with jaw/gripper/clamp style handles.",300,0,0]
[null,"16-18 oz. Wet Mop - Cotton for absorption,loop-end fiber with woven tail band, launderable, useable with jaw/gripper/clamp style handles.",200,0,0]
[null,"Handles shall be Quik change handle with swivel clip or 360 degree swivel wood, fieberglass. Handles should not be heavy and not splinter while in use.",120,0,0]
[]
[null,"Weekly Pick-up Service Program,  Microfiber Dust Mop to include handle and frame"]
[null,"Item","Approx Weekly Usage","Unit Price","Extended Price"]
[null,"18\" Microfiber dust mop - Canvas. Fabric of 80% Polyester, 20% Polyamide, weight 560 g/sqm with piel height of 6mm. Backing material 100% textured polyester, weight 8.30 oz per sq yd. Fringe yarn 80% polyester, 20% polyamide with solution dyed blue, twist per inch 2, stitches pser ince 6-8. Length approximately 40 mm, 26 grams/sq.rd weight.",188,0,{"$f":"+C16*D16","v":0}]
[null,"24\" Microfiber dust mop - Canvas. Fabric of 80% Polyester, 20% Polyamide, weight 560 g/sqm with piel height of 6mm. Backing material 100% textured polyester, weight 8.30 oz per sq yd. Fringe yarn 80% polyester, 20% polyamide with solution dyed blue, twist per inch 2, stitches pser ince 6-8. Length approximately 40 mm, 26 grams/sq.rd weight.",330,0,{"$f":"+C17*D17","v":0}]
[null,"36\" Microfiber dust mop - Canvas. Fabric of 80% Polyester, 20% Polyamide, weight 560 g/sqm with piel height of 6mm. Backing material 100% textured polyester, weight 8.30 oz per sq yd. Fringe yarn 80% polyester, 20% polyamide with solution dyed blue, twist per inch 2, stitches pser ince 6-8. Length approximately 40 mm, 26 grams/sq.rd weight.",21,0,{"$f":"+C18*D18","v":0}]
[null,"60\" Microfiber dust mop - Canvas. Fabric of 80% Polyester, 20% Polyamide, weight 560 g/sqm with piel height of 6mm. Backing material 100% textured polyester, weight 8.30 oz per sq yd. Fringe yarn 80% polyester, 20% polyamide with solution dyed blue, twist per inch 2, stitches pser ince 6-8. Length approximately 40 mm, 26 grams/sq.rd weight.",203,0,{"$f":"+C19*D19","v":0}]
[null,"Microfiber Lightweight Tube Mop.",501,0,{"$f":"+C20*D20","v":0}]
[null,"Rubbermaid Hygen High-pile, 28\" microfiberduster sleeve-white.",653,0,0]
[null,"Rubbermaid Hygen Handles.",290,0,0]
[null,"Handles shall be Quik change handle with swivel clip or 360 degree swivel wood, fieberglass. Handles should not be heavy and not splinter while in use.",426,0,{"$f":"+C23*D23","v":0}]
[]
[null,"Weekly Pick-up Service Program"]
[null,"Item","Approx WeeklyUsage","Unit Price","Extended Price"]
[null,"16\" Micro Wet Mop Scrubber Pads - reuseable, launderable. Built-in scrubber for stains and scuff. Traditional hook-and-loop backing. 18 oz. weight.",53,0,{"$f":"+C27*D27","v":0}]
[null,"16x16 Microfiber Muti-pupose Towel- Blue, 200-300 gms weight, lint-free, color-coded, reuseable, launderable.",4630,0,0]
[null,"16x16 Microfiber Muti-pupose Towel-Orange, 200-300 gms weight, lint-free, color-coded, reuseable, launderable.  ",3730,0,0]
[null,"16x19 Terry Towel-snag resistant reuseable, launderable.",555,0,0]
[null,"Shop Towels-durableble and snap-restistant terry fabric.",100,0,0]
[null,"Wet Mops, Cotton for absorption, loop-end fiber with woven tail band, color coded to reflect size, launderable, useable with jaw/gripper/clamp style handles. ",10,0,0]
[null,"Laundry Bags & Stands (Enter $0 if there is no charge)",47,0,0]
[null,"Enter this total into bid schedule total on page 31.  Cost evaluation will be based on this number. ",null,"Total",{"$f":"SUM(E7:E33)","v":0}]